[Event "Polish Youth G18 Championship 2023"]
[Site "Jastrzebia Gora"]
[Date "2023.03.13"]
[Round "2.11"]
[White "Obrochta, Lena"]
[Black "Labedz, Gabriela"]
[Result "0-1"]
[ECO "B34"]
[WhiteElo "1673"]
[BlackElo "1425"]
[Annotator "NA RC COMBH"]
[PlyCount "102"]
[EventDate "2023.03.11"]
[EventType "swiss"]
[EventCountry "POL"]
[SourceTitle "playchess.com"]
[Source "ChessBase"]
[SourceQuality "1"]
[TimeControl "40/5400+30:1800+30"]

1. e4 {[%emt 0:00:03]} c5 {[%emt 0:00:03]} 2. Nf3 {[%emt 0:00:23]} Nc6 {[%emt 0:00:05]} 3. d4 {[%emt 0:00:04]} cxd4 {[%emt 0:00:03]} 4. Nxd4 {[%emt 0:00:08]} g6 {[%emt 0:00:06]} 5. Nc3 {[%emt 0:00:51]} Bg7 {[%emt 0:00:07]} 6. Nb3 {[%emt 0:00:08]} Nf6 {[%emt 0:00:27]} 7. Be2 {[%emt 0:01:41]} O-O {[%emt 0:00:22]} 8. O-O {[%emt 0:01:39]} a5 {[%emt 0:00:22]} 9. a4 {[%emt 0:06:41]} Nb4 {[%emt 0:00:58]} 10. Bg5 {[%emt 0:08:37]} d5 {[%emt 0:02:55]} 11. exd5 {[%emt 0:03:17]} Nfxd5 {[%emt 0:02:09]} 12. Nxd5 {[%emt 0:02:02]} Nxd5 {[%emt 0:03:43]} 13. Bf3 {[%emt 0:09:52]} Nb6 {[%emt 0:11:52]} 14. Qxd8 {[%emt 0:09:25]} Rxd8 {[%emt 0:00:31]} 15. Bxe7 {[%emt 0:07:28]} Re8 {[%emt 0:02:18]} 16. Bc5 {[%emt 0:05:08]} Nc4 {[%emt 0:03:38]} 17. Nd4 {[%emt 0:05:04]} Nxb2 {[%emt 0:13:23]} 18. Nb5 {[%emt 0:07:29]} Be5 {[%emt 0:10:14]} 19. Rfe1 {[%emt 0:01:24]} Bf5 {[%emt 0:08:16]} 20. Rxe5 {[%emt 0:02:55]} Rxe5 {[%emt 0:01:22]} 21. Bd4 {[%emt 0:00:08]} Nc4 {[%emt 0:04:44]} 22. Bxe5 {[%emt 0:06:04]} Nxe5 {[%emt 0:00:13]} 23. Nd4 {[%emt 0:02:43]} Nxf3+ {[%emt 0:01:36]} 24. gxf3 {[%emt 0:00:25]} Bh3 {[%emt 0:03:23]} 25. c4 {[%emt 0:09:55]} Rd8 {[%emt 0:04:37]} 26. Nb5 {[%emt 0:04:33]} Rd3 {[%emt 0:01:09]} 27. f4 {[%emt 0:02:31]} b6 {[%emt 0:03:18]} 28. Rc1 {[%emt 0:00:43]} Bd7 {[%emt 0:05:42]} 29. Rc3 {[%emt 0:01:17]} Rxc3 {[%emt 0:01:37]} 30. Nxc3 {[%emt 0:00:06]} Be6 {[%emt 0:01:44]} 31. Kg2 {[%emt 0:01:54]} Bxc4 {[%emt 0:00:38]} 32. Kf3 {[%emt 0:00:05]} Kf8 {[%emt 0:02:32]} 33. Ke4 {[%emt 0:00:12]} Ke7 {[%emt 0:02:12]} 34. Kd4 {[%emt 0:00:38]} Bb3 {[%emt 0:00:28]} 35. Ke3 {[%emt 0:01:37]} Ke6 {[%emt 0:03:38]} 36. Ke4 {[%emt 0:00:33]} Bc2+ {[%emt 0:01:35]} 37. Ke3 {[%emt 0:00:12]} Kf5 {[%emt 0:01:54]} 38. Kf3 {[%emt 0:00:22]} Bb3 {[%emt 0:00:44]} 39. h3 {[%emt 0:00:32]} h5 {[%emt 0:00:44]} 40. Ke3 {[%emt 0:00:00]} h4 {[%emt 0:00:00]} 41. Kf3 {[%emt 0:07:51]} Bc4 {[%emt 0:05:40]} 42. Ke3 {[%emt 0:06:02]} Bf1 {[%emt 0:02:40]} 43. Ne4 {[%emt 0:01:48]} f6 {[%emt 0:04:54]} 44. Nd2 {[%emt 0:05:33]} Bxh3 {[%emt 0:02:12]} 45. Nf3 {[%emt 0:03:02]} g5 {[%emt 0:02:12]} 46. fxg5 {[%emt 0:01:04]} fxg5 {[%emt 0:00:14]} 47. Nd4+ {[%emt 0:00:59]} Kf6 {[%emt 0:01:34]} 48. Ne2 {[%emt 0:00:24]} Bd7 {[%emt 0:01:43]} 49. Nc3 {[%emt 0:00:32]} Bc6 {[%emt 0:00:17]} 50. f3 {[%emt 0:00:34]} Kf5 {[%emt 0:00:33]} 51. Kf2 {[%emt 0:02:26]} Kf4 {[%emt 0:01:14]} 0-1

[Event "Polish Youth G18 Championship 2023"]
[Site "Jastrzebia Gora"]
[Date "2023.03.13"]
[Round "2.12"]
[White "Anyz, Monika"]
[Black "Czerwinska, Oliwia"]
[Result "0-1"]
[ECO "C50"]
[WhiteElo "1755"]
[BlackElo "1369"]
[Annotator "NA RC COMBH"]
[PlyCount "118"]
[EventDate "2023.03.11"]
[EventType "swiss"]
[EventCountry "POL"]
[SourceTitle "playchess.com"]
[Source "ChessBase"]
[SourceQuality "1"]
[TimeControl "40/5400+30:1800+30"]

1. e4 {[%emt 0:00:03]} e5 {[%emt 0:00:05]} 2. Nf3 {[%emt 0:00:08]} Nc6 {[%emt 0:00:06]} 3. d4 {[%emt 0:00:04]} exd4 {[%emt 0:00:14]} 4. Bc4 {[%emt 0:00:06]} Be7 {[%emt 0:00:19]} 5. c3 {[%emt 0:01:37]} Na5 {[%emt 0:12:14]} 6. Qxd4 {[%emt 0:12:08]} Nxc4 {[%emt 0:01:01]} 7. Qxc4 {[%emt 0:00:07]} d6 {[%emt 0:06:00]} 8. O-O {[%emt 0:04:24]} Nf6 {[%emt 0:08:11]} 9. h3 {[%emt 0:12:07]} O-O {[%emt 0:00:40]} 10. Be3 {[%emt 0:00:45]} Be6 {[%emt 0:00:58]} 11. Qd3 {[%emt 0:00:31]} Nd7 {[%emt 0:06:26]} 12. Nbd2 {[%emt 0:02:45]} a6 {[%emt 0:02:56]} 13. a4 {[%emt 0:01:17]} Ne5 {[%emt 0:01:15]} 14. Qc2 {[%emt 0:03:15]} Qc8 {[%emt 0:13:54]} 15. Nd4 {[%emt 0:09:35]} Nc4 {[%emt 0:10:01]} 16. Nxc4 {[%emt 0:03:02]} Bxc4 {[%emt 0:00:06]} 17. Rfe1 {[%emt 0:00:20]} Be6 {[%emt 0:07:04]} 18. Rad1 {[%emt 0:08:27]} Bf6 {[%emt 0:02:48]} 19. Nf3 {[%emt 0:10:24]} b6 {[%emt 0:04:34]} 20. b4 {[%emt 0:06:44]} Qb7 {[%emt 0:01:03]} 21. Bd4 {[%emt 0:02:53]} Be7 {[%emt 0:06:39]} 22. e5 {[%emt 0:05:32]} Bxh3 {[%emt 0:07:50]} 23. Qe4 {[%emt 0:11:49]} Qxe4 {[%emt 0:00:19]} 24. Rxe4 {[%emt 0:00:06]} Bf5 {[%emt 0:00:14]} 25. Ree1 {[%emt 0:00:25]} Rad8 {[%emt 0:01:51]} 26. Rd2 {[%emt 0:01:22]} d5 {[%emt 0:01:48]} 27. Red1 {[%emt 0:00:42]} c5 {[%emt 0:01:52]} 28. bxc5 {[%emt 0:00:29]} bxc5 {[%emt 0:00:09]} 29. Be3 {[%emt 0:00:13]} Be6 {[%emt 0:00:18]} 30. Rb1 {[%emt 0:00:49]} Rb8 {[%emt 0:01:23]} 31. Rdb2 {[%emt 0:00:12]} Rxb2 {[%emt 0:00:27]} 32. Rxb2 {[%emt 0:00:07]} Ra8 {[%emt 0:01:23]} 33. Rb7 {[%emt 0:00:44]} Kf8 {[%emt 0:00:18]} 34. Rc7 {[%emt 0:00:39]} Rc8 {[%emt 0:00:52]} 35. Ra7 {[%emt 0:01:29]} Rc6 {[%emt 0:00:43]} 36. Ra8+ {[%emt 0:00:54]} Bc8 {[%emt 0:00:09]} 37. Kf1 {[%emt 0:00:58]} Ke8 {[%emt 0:00:42]} 38. Ra7 {[%emt 0:00:51]} h6 {[%emt 0:00:56]} 39. Ra8 {[%emt 0:00:35]} Kd8 {[%emt 0:00:50]} 40. Bf4 {[%emt 0:00:00]} g5 {[%emt 0:00:00]} 41. Bg3 {[%emt 0:01:47]} Ke8 {[%emt 0:03:52]} 42. Nd2 {[%emt 0:07:32]} Bd8 {[%emt 0:05:03]} 43. Rb8 {[%emt 0:01:21]} Be6 {[%emt 0:02:14]} 44. f4 {[%emt 0:03:08]} Rb6 {[%emt 0:00:41]} 45. Rxb6 {[%emt 0:05:36]} Bxb6 {[%emt 0:00:07]} 46. fxg5 {[%emt 0:01:20]} hxg5 {[%emt 0:01:02]} 47. Bf2 {[%emt 0:00:23]} Kd7 {[%emt 0:01:36]} 48. a5 {[%emt 0:08:05]} Bxa5 {[%emt 0:03:17]} 49. Nb3 {[%emt 0:00:10]} Bxc3 {[%emt 0:03:22]} 50. Nxc5+ {[%emt 0:00:26]} Kc6 {[%emt 0:01:53]} 51. Nxa6 {[%emt 0:00:15]} d4 {[%emt 0:01:12]} 52. Nb4+ {[%emt 0:04:20]} Bxb4 {[%emt 0:00:07]} 53. Bxd4 {[%emt 0:00:05]} Bc4+ {[%emt 0:00:34]} 54. Kf2 {[%emt 0:00:12]} Bc5 {[%emt 0:00:37]} 55. Ke3 {[%emt 0:00:26]} Bd5 {[%emt 0:00:49]} 56. g3 {[%emt 0:00:53]} Bxd4+ {[%emt 0:00:33]} 57. Kxd4 {[%emt 0:00:07]} Be6 {[%emt 0:00:24]} 58. Ke4 {[%emt 0:00:27]} Kc5 {[%emt 0:00:09]} 59. Ke3 {[%emt 0:00:38]} Kd5 {[%emt 0:00:08]} 0-1

[Event "Polish Youth G18 Championship 2023"]
[Site "Jastrzebia Gora"]
[Date "2023.03.13"]
[Round "2.13"]
[White "Bartoszek, Julia"]
[Black "Trybus, Dominika"]
[Result "1-0"]
[ECO "B16"]
[WhiteElo "1344"]
[BlackElo "1543"]
[Annotator "NA RC COMBH"]
[PlyCount "127"]
[EventDate "2023.03.11"]
[EventType "swiss"]
[EventCountry "POL"]
[SourceTitle "playchess.com"]
[Source "ChessBase"]
[SourceQuality "1"]
[TimeControl "40/5400+30:1800+30"]

1. e4 {[%emt 0:00:04]} c6 {[%emt 0:00:14]} 2. d4 {[%emt 0:00:08]} d5 {[%emt 0:00:41]} 3. Nc3 {[%emt 0:00:14]} dxe4 {[%emt 0:00:33]} 4. Nxe4 {[%emt 0:00:09]} Nf6 {[%emt 0:00:05]} 5. Nxf6+ {[%emt 0:00:09]} gxf6 {[%emt 0:00:07]} 6. Nf3 {[%emt 0:01:02]} Bg4 {[%emt 0:00:42]} 7. Be2 {[%emt 0:02:29]} Nd7 {[%emt 0:01:29]} 8. c3 {[%emt 0:03:57]} Nb6 {[%emt 0:01:31]} 9. Qc2 {[%emt 0:02:50]} Qd6 {[%emt 0:02:56]} 10. h3 {[%emt 0:11:20]} Bxf3 {[%emt 0:05:55]} 11. Bxf3 {[%emt 0:01:24]} O-O-O {[%emt 0:01:16]} 12. Be3 {[%emt 0:07:26]} e6 {[%emt 0:05:17]} 13. O-O-O {[%emt 0:04:27]} Nd5 {[%emt 0:03:16]} 14. Kb1 {[%emt 0:02:49]} Qc7 {[%emt 0:04:20]} 15. Bxd5 {[%emt 0:02:59]} cxd5 {[%emt 0:02:29]} 16. Rhe1 {[%emt 0:04:38]} Bd6 {[%emt 0:01:19]} 17. Qa4 {[%emt 0:03:24]} Kb8 {[%emt 0:00:26]} 18. Rc1 {[%emt 0:02:31]} Qd7 {[%emt 0:06:50]} 19. Qb3 {[%emt 0:03:59]} Rc8 {[%emt 0:01:57]} 20. Qc2 {[%emt 0:03:44]} Qb5 {[%emt 0:03:21]} 21. Qe2 {[%emt 0:01:53]} Qd7 {[%emt 0:04:51]} 22. Qf3 {[%emt 0:02:17]} Be7 {[%emt 0:04:54]} 23. Bf4+ {[%emt 0:05:14]} Ka8 {[%emt 0:00:59]} 24. Qh5 {[%emt 0:01:21]} Bd8 {[%emt 0:03:20]} 25. Re3 {[%emt 0:03:24]} Rc6 {[%emt 0:06:10]} 26. Rg3 {[%emt 0:03:50]} e5 {[%emt 0:04:02]} 27. dxe5 {[%emt 0:03:01]} Rc4 {[%emt 0:02:52]} 28. Be3 {[%emt 0:03:10]} fxe5 {[%emt 0:06:18]} 29. Qxe5 {[%emt 0:01:58]} Re8 {[%emt 0:00:15]} 30. Qh5 {[%emt 0:01:07]} Rh4 {[%emt 0:04:30]} 31. Qf3 {[%emt 0:03:18]} f5 {[%emt 0:03:30]} 32. Bg5 {[%emt 0:02:13]} Rhe4 {[%emt 0:06:54]} 33. Bxd8 {[%emt 0:01:52]} Rxd8 {[%emt 0:00:28]} 34. Rg5 {[%emt 0:02:23]} f4 {[%emt 0:02:13]} 35. Rd1 {[%emt 0:01:35]} Qe6 {[%emt 0:02:02]} 36. Qd3 {[%emt 0:01:36]} Re1 {[%emt 0:02:12]} 37. f3 {[%emt 0:04:05]} h6 {[%emt 0:02:29]} 38. Rg4 {[%emt 0:01:17]} Rxd1+ {[%emt 0:05:08]} 39. Qxd1 {[%emt 0:00:08]} Qf5+ {[%emt 0:00:15]} 40. Qc2 {[%emt 0:00:00]} Qe5 {[%emt 0:00:00]} 41. Qd2 {[%emt 0:02:57]} Qf5+ {[%emt 0:08:04]} 42. Kc1 {[%emt 0:02:07]} Rf8 {[%emt 0:01:05]} 43. Rg7 {[%emt 0:03:32]} Re8 {[%emt 0:01:33]} 44. Rg4 {[%emt 0:02:03]} Rf8 {[%emt 0:02:51]} 45. Qe2 {[%emt 0:03:34]} Qf6 {[%emt 0:01:05]} 46. Qf2 {[%emt 0:02:00]} h5 {[%emt 0:01:05]} 47. Rh4 {[%emt 0:01:27]} Qe5 {[%emt 0:00:57]} 48. Qd2 {[%emt 0:03:20]} Qg5 {[%emt 0:02:20]} 49. Qf2 {[%emt 0:00:38]} Rc8 {[%emt 0:02:27]} 50. Kd2 {[%emt 0:02:20]} d4 {[%emt 0:01:29]} 51. Kd1 {[%emt 0:06:03]} dxc3 {[%emt 0:00:22]} 52. bxc3 {[%emt 0:00:09]} Qd5+ {[%emt 0:00:41]} 53. Qd2 {[%emt 0:01:00]} Qg5 {[%emt 0:04:32]} 54. Rxf4 {[%emt 0:01:49]} Qg6 {[%emt 0:01:20]} 55. Re4 {[%emt 0:01:12]} Qb6 {[%emt 0:00:45]} 56. Rb4 {[%emt 0:01:49]} Qg6 {[%emt 0:01:57]} 57. Qd5 {[%emt 0:01:49]} Rb8 {[%emt 0:00:45]} 58. g4 {[%emt 0:01:29]} hxg4 {[%emt 0:00:08]} 59. hxg4 {[%emt 0:00:07]} Qf6 {[%emt 0:00:26]} 60. Rd4 {[%emt 0:00:36]} Qh4 {[%emt 0:00:53]} 61. g5 {[%emt 0:00:38]} Qh1+ {[%emt 0:00:09]} 62. Kc2 {[%emt 0:00:10]} Qh7+ {[%emt 0:00:28]} 63. Qe4 {[%emt 0:00:28]} Qh2+ {[%emt 0:00:24]} 64. Rd2 {[%emt 0:00:11]} 1-0

[Event "Polish Youth G18 Championship 2023"]
[Site "Jastrzebia Gora"]
[Date "2023.03.13"]
[Round "2.14"]
[White "Krzyzosiak, Anna"]
[Black "Gornisiewicz, Natalia"]
[Result "1-0"]
[ECO "C00"]
[WhiteElo "1503"]
[BlackElo "1287"]
[Annotator "NA RC COMBH"]
[PlyCount "57"]
[EventDate "2023.03.11"]
[EventType "swiss"]
[EventCountry "POL"]
[SourceTitle "playchess.com"]
[Source "ChessBase"]
[SourceQuality "1"]
[TimeControl "40/5400+30:1800+30"]

1. e4 {[%emt 0:00:02]} e6 {[%emt 0:00:09]} 2. d3 {[%emt 0:00:22]} d5 {[%emt 0:00:26]} 3. Qe2 {[%emt 0:00:37]} dxe4 {[%emt 0:01:42]} 4. dxe4 {[%emt 0:00:57]} Nf6 {[%emt 0:02:10]} 5. Nf3 {[%emt 0:04:09]} c5 {[%emt 0:04:24]} 6. g3 {[%emt 0:05:42]} Be7 {[%emt 0:02:32]} 7. Bg2 {[%emt 0:02:28]} Nc6 {[%emt 0:03:49]} 8. c3 {[%emt 0:13:08]} b6 {[%emt 0:05:33]} 9. O-O {[%emt 0:06:22]} O-O {[%emt 0:06:29]} 10. Na3 {[%emt 0:05:40]} a6 {[%emt 0:08:24]} 11. Nc4 {[%emt 0:04:06]} Nd7 {[%emt 0:07:04]} 12. Rd1 {[%emt 0:07:05]} b5 {[%emt 0:04:33]} 13. Nd6 {[%emt 0:11:11]} Bxd6 {[%emt 0:10:24]} 14. Rxd6 {[%emt 0:00:47]} Qc7 {[%emt 0:01:28]} 15. Qd1 {[%emt 0:09:42]} Nb6 {[%emt 0:08:38]} 16. b3 {[%emt 0:06:37]} Rd8 {[%emt 0:05:05]} 17. Bf4 {[%emt 0:01:45]} Bb7 {[%emt 0:02:31]} 18. Rxd8+ {[%emt 0:01:42]} Qxd8 {[%emt 0:00:53]} 19. Qxd8+ {[%emt 0:00:14]} Nxd8 {[%emt 0:00:43]} 20. Bc7 {[%emt 0:02:48]} Nd7 {[%emt 0:00:20]} 21. Rd1 {[%emt 0:00:24]} Bc6 {[%emt 0:00:26]} 22. Rd6 {[%emt 0:01:36]} Nb7 {[%emt 0:03:02]} 23. Rxc6 {[%emt 0:00:29]} Rc8 {[%emt 0:00:38]} 24. e5 {[%emt 0:01:55]} Nb8 {[%emt 0:05:17]} 25. Rb6 {[%emt 0:00:32]} Rxc7 {[%emt 0:00:24]} 26. Ne1 {[%emt 0:00:27]} Nd7 {[%emt 0:00:28]} 27. Rxb7 {[%emt 0:00:32]} Rxb7 {[%emt 0:00:16]} 28. Bxb7 {[%emt 0:00:06]} Nxe5 {[%emt 0:00:44]} 29. Bxa6 {[%emt 0:00:32]} 1-0

[Event "Polish Youth G18 Championship 2023"]
[Site "Jastrzebia Gora"]
[Date "2023.03.13"]
[Round "2.15"]
[White "Tittor, Weronika"]
[Black "Dallemura, Anna"]
[Result "0-1"]
[ECO "C54"]
[WhiteElo "1226"]
[BlackElo "1496"]
[Annotator "NA RC COMBH"]
[PlyCount "72"]
[EventDate "2023.03.11"]
[EventType "swiss"]
[EventCountry "POL"]
[SourceTitle "playchess.com"]
[Source "ChessBase"]
[SourceQuality "1"]
[TimeControl "40/5400+30:1800+30"]

1. e4 e5 2. Nf3 Nc6 3. Bc4 Bc5 4. c3 Nf6 5. d4 exd4 6. cxd4 Bb4+ 7. Nbd2 d5 8. exd5 Nxd5 9. O-O O-O 10. a3 Be7 11. Re1 Nb6 12. Bd3 Bf6 13. Nb3 Bg4 14. Be3 Qd5 15. Rc1 Rad8 16. Nc5 Nxd4 17. Be4 Qh5 18. Bxd4 Bxd4 19. Qc2 Bxc5 20. Qxc5 Qxc5 21. Rxc5 c6 22. Ne5 Be6 23. Nf3 h6 24. h3 Rd7 25. g4 Nc4 26. Re2 Rd1+ 27. Kg2 Rfd8 28. Kg3 R1d7 29. g5 Bd5 30. Bxd5 cxd5 31. gxh6 gxh6 32. Nd4 Kh7 33. Kg4 Rg8+ 34. Kf5 Nd6+ 35. Kf4 Ne4 36. f3 Nxc5 0-1

[Event "Polish Youth G18 Championship 2023"]
[Site "Jastrzebia Gora"]
[Date "2023.03.13"]
[Round "2.16"]
[White "Szczotka, Matylda"]
[Black "Olszewska, Wiktoria"]
[Result "1-0"]
[ECO "B18"]
[WhiteElo "1451"]
[BlackElo "1287"]
[Annotator "NA RC COMBH"]
[PlyCount "65"]
[EventDate "2023.03.11"]
[EventType "swiss"]
[EventCountry "POL"]
[SourceTitle "playchess.com"]
[Source "ChessBase"]
[SourceQuality "1"]
[TimeControl "40/5400+30:1800+30"]

1. e4 {[%emt 0:00:03]} c6 {[%emt 0:00:19]} 2. d4 {[%emt 0:00:06]} d5 {[%emt 0:00:08]} 3. Nc3 {[%emt 0:00:04]} dxe4 {[%emt 0:00:16]} 4. Nxe4 {[%emt 0:00:02]} Bf5 {[%emt 0:00:14]} 5. Ng3 {[%emt 0:00:08]} Bg6 {[%emt 0:00:08]} 6. N1e2 {[%emt 0:01:40]} Nd7 {[%emt 0:05:27]} 7. Nf4 {[%emt 0:06:01]} e5 {[%emt 0:02:09]} 8. Nxg6 {[%emt 0:14:34]} hxg6 {[%emt 0:01:19]} 9. Be3 {[%emt 0:03:32]} Ngf6 {[%emt 0:08:59]} 10. Bc4 {[%emt 0:05:33]} Qa5+ {[%emt 0:07:10]} 11. c3 {[%emt 0:04:10]} Be7 {[%emt 0:15:25]} 12. Qc2 {[%emt 0:11:44]} Ng4 {[%emt 0:20:09]} 13. O-O-O {[%emt 0:14:28]} Rd8 {[%emt 0:14:31]} 14. Qe2 {[%emt 0:10:44]} Ngf6 {[%emt 0:04:00]} 15. f4 {[%emt 0:08:09]} exd4 {[%emt 0:05:11]} 16. Bxd4 {[%emt 0:00:32]} Kf8 {[%emt 0:02:29]} 17. Qf3 {[%emt 0:08:49]} g5 {[%emt 0:05:24]} 18. Kb1 {[%emt 0:04:22]} gxf4 {[%emt 0:02:27]} 19. Qxf4 {[%emt 0:00:44]} b5 {[%emt 0:01:46]} 20. Bb3 {[%emt 0:01:33]} c5 {[%emt 0:01:02]} 21. Bxf6 {[%emt 0:00:49]} Nxf6 {[%emt 0:01:04]} 22. Nf5 {[%emt 0:01:33]} Re8 {[%emt 0:00:59]} 23. Nd6 {[%emt 0:01:02]} Bxd6 {[%emt 0:00:28]} 24. Qxd6+ {[%emt 0:00:01]} Kg8 {[%emt 0:00:42]} 25. Qxc5 {[%emt 0:00:44]} Rh5 {[%emt 0:00:30]} 26. Qc6 {[%emt 0:01:33]} Rhe5 {[%emt 0:00:27]} 27. Rhf1 {[%emt 0:00:35]} R5e7 {[%emt 0:00:36]} 28. h3 {[%emt 0:00:27]} a6 {[%emt 0:00:35]} 29. g4 {[%emt 0:00:14]} Nh7 {[%emt 0:00:34]} 30. Bxf7+ {[%emt 0:00:35]} Rxf7 {[%emt 0:00:21]} 31. Qxe8+ {[%emt 0:00:02]} Rf8 {[%emt 0:00:12]} 32. Rxf8+ {[%emt 0:00:12]} Nxf8 {[%emt 0:00:07]} 33. Rf1 {[%emt 0:00:16]} 1-0

[Event "Polish Youth G18 Championship 2023"]
[Site "Jastrzebia Gora"]
[Date "2023.03.13"]
[Round "2.17"]
[White "Pietrzak, Emilia"]
[Black "Bauer, Marika"]
[Result "1-0"]
[ECO "C70"]
[WhiteElo "1424"]
[BlackElo "1183"]
[Annotator "NA RC COMBH"]
[PlyCount "97"]
[EventDate "2023.03.11"]
[EventType "swiss"]
[EventCountry "POL"]
[SourceTitle "playchess.com"]
[Source "ChessBase"]
[SourceQuality "1"]
[TimeControl "40/5400+30:1800+30"]

1. e4 e5 2. Nf3 Nc6 3. Bb5 a6 4. Ba4 b5 5. Bb3 Nf6 6. O-O Bc5 7. c3 d6 8. Re1 Bg4 9. h3 Bh5 10. d3 h6 11. Nbd2 Nh7 12. Bd5 Qd7 13. Nxe5 Bxd1 14. Nxd7 Kxd7 15. Rxd1 Raf8 16. d4 Bb6 17. Bb3 Kc8 18. Nf3 f6 19. Nh4 Ne7 20. Nf5 Nxf5 21. exf5 Re8 22. Be6+ Kb7 23. Re1 Ng5 24. d5 c6 25. Bf4 Kc7 26. Rad1 c5 27. Re2 Re7 28. Kf1 Rhe8 29. Bg3 c4 30. a4 Bc5 31. axb5 axb5 32. Ra1 Rb8 33. f4 Nh7 34. Bf2 Bxf2 35. Kxf2 Nf8 36. Ra7+ Kd8 37. Ra6 Nxe6 38. fxe6 b4 39. Rxd6+ Ke8 40. Rc6 Reb7 41. Rxc4 bxc3 42. bxc3 Rb2 43. Rxb2 Rxb2+ 44. Kf3 Rd2 45. Rd4 Rc2 46. c4 Rc3+ 47. Kg4 Rc2 48. d6 Rxg2+ 49. Kf3 1-0

[Event "Polish Youth G18 Championship 2023"]
[Site "Jastrzebia Gora"]
[Date "2023.03.13"]
[Round "2.18"]
[White "Lopusiewicz, Marta"]
[Black "Gaczol, Julia"]
[Result "0-1"]
[ECO "D02"]
[WhiteElo "1180"]
[BlackElo "1419"]
[Annotator "NA RC COMBH"]
[PlyCount "106"]
[EventDate "2023.03.11"]
[EventType "swiss"]
[EventCountry "POL"]
[SourceTitle "playchess.com"]
[Source "ChessBase"]
[SourceQuality "1"]
[TimeControl "40/5400+30:1800+30"]

1. d4 {[%emt 0:00:02]} d5 {[%emt 0:00:05]} 2. Nf3 {[%emt 0:00:06]} e6 {[%emt 0:00:05]} 3. g3 {[%emt 0:00:16]} c6 {[%emt 0:03:12]} 4. Bg2 {[%emt 0:00:13]} Nf6 {[%emt 0:00:05]} 5. c4 {[%emt 0:00:25]} Nbd7 {[%emt 0:08:03]} 6. O-O {[%emt 0:04:21]} dxc4 {[%emt 0:03:40]} 7. Qc2 {[%emt 0:02:32]} Qc7 {[%emt 0:10:01]} 8. Bf4 {[%emt 0:05:11]} Bd6 {[%emt 0:07:49]} 9. Bxd6 {[%emt 0:01:08]} Qxd6 {[%emt 0:01:31]} 10. Nbd2 {[%emt 0:01:35]} b5 {[%emt 0:03:23]} 11. Rfd1 {[%emt 0:02:58]} Bb7 {[%emt 0:00:58]} 12. a4 {[%emt 0:03:15]} a6 {[%emt 0:02:44]} 13. b3 {[%emt 0:05:59]} c5 {[%emt 0:10:16]} 14. dxc5 {[%emt 0:05:53]} Qxc5 {[%emt 0:02:51]} 15. bxc4 {[%emt 0:10:02]} O-O {[%emt 0:07:05]} 16. Nb3 {[%emt 0:05:48]} Qxc4 {[%emt 0:02:40]} 17. Qxc4 {[%emt 0:02:37]} bxc4 {[%emt 0:00:05]} 18. Na5 {[%emt 0:00:49]} Bd5 {[%emt 0:00:45]} 19. Rdc1 {[%emt 0:00:28]} Rac8 {[%emt 0:00:40]} 20. Ra3 {[%emt 0:01:55]} Rc5 {[%emt 0:00:38]} 21. Nxc4 {[%emt 0:01:50]} Rxc4 {[%emt 0:00:22]} 22. Rxc4 {[%emt 0:00:49]} Bxc4 {[%emt 0:00:08]} 23. Bf1 {[%emt 0:01:17]} Rb8 {[%emt 0:01:24]} 24. Nd2 {[%emt 0:00:46]} Bd5 {[%emt 0:00:55]} 25. f3 {[%emt 0:01:48]} Rb2 {[%emt 0:05:22]} 26. e4 {[%emt 0:00:46]} Rxd2 {[%emt 0:01:23]} 27. exd5 {[%emt 0:00:06]} Rxd5 {[%emt 0:00:26]} 28. Bxa6 {[%emt 0:00:14]} Ra5 {[%emt 0:01:42]} 29. Bb5 {[%emt 0:00:34]} g6 {[%emt 0:01:50]} 30. Kf2 {[%emt 0:01:08]} Nc5 {[%emt 0:01:25]} 31. Ke3 {[%emt 0:00:24]} Nxa4 {[%emt 0:01:15]} 32. Bxa4 {[%emt 0:00:57]} Nd5+ {[%emt 0:00:07]} 33. Kd3 {[%emt 0:00:54]} Nb6 {[%emt 0:00:21]} 34. Kc3 {[%emt 0:00:54]} Rxa4 {[%emt 0:00:00]} 35. Rxa4 {[%emt 0:00:07]} Nxa4+ {[%emt 0:00:00]} 36. Kd4 {[%emt 0:00:08]} f6 {[%emt 0:00:00]} 37. g4 {[%emt 0:00:20]} h5 {[%emt 0:00:00]} 38. h3 {[%emt 0:00:18]} Kf7 {[%emt 0:00:00]} 39. Ke4 {[%emt 0:00:00]} e5 {[%emt 0:00:00]} 40. Kd3 {[%emt 0:00:00]} Ke6 {[%emt 0:00:00]} 41. Ke3 {[%emt 0:01:23]} Nc5 {[%emt 0:00:41]} 42. Kf2 {[%emt 0:00:54]} hxg4 {[%emt 0:01:37]} 43. hxg4 {[%emt 0:00:07]} f5 {[%emt 0:00:13]} 44. gxf5+ {[%emt 0:00:22]} gxf5 {[%emt 0:00:06]} 45. Ke2 {[%emt 0:00:16]} Kd5 {[%emt 0:00:09]} 46. Ke3 {[%emt 0:00:26]} f4+ {[%emt 0:00:12]} 47. Ke2 {[%emt 0:00:26]} Kd4 {[%emt 0:00:06]} 48. Kd2 {[%emt 0:00:14]} Nb3+ {[%emt 0:00:11]} 49. Ke2 {[%emt 0:00:07]} Kc3 {[%emt 0:00:05]} 50. Ke1 {[%emt 0:00:25]} Kd3 {[%emt 0:00:09]} 51. Kf2 {[%emt 0:00:08]} Kd2 {[%emt 0:00:06]} 52. Kf1 {[%emt 0:00:13]} Ke3 {[%emt 0:00:08]} 53. Kg2 {[%emt 0:00:06]} Ke2 {[%emt 0:00:04]} 0-1

[Event "Polish Youth G18 Championship 2023"]
[Site "Jastrzebia Gora"]
[Date "2023.03.13"]
[Round "2.19"]
[White "Bychowska, Marta"]
[Black "Pietruszka, Julia"]
[Result "1-0"]
[ECO "C44"]
[WhiteElo "1388"]
[BlackElo "1151"]
[Annotator "NA RC COMBH"]
[PlyCount "73"]
[EventDate "2023.03.11"]
[EventType "swiss"]
[EventCountry "POL"]
[SourceTitle "playchess.com"]
[Source "ChessBase"]
[SourceQuality "1"]
[TimeControl "40/5400+30:1800+30"]

1. e4 {[%emt 0:00:03]} e5 {[%emt 0:00:02]} 2. Nf3 {[%emt 0:00:08]} Nc6 {[%emt 0:00:06]} 3. d4 {[%emt 0:00:08]} exd4 {[%emt 0:00:04]} 4. Nxd4 {[%emt 0:00:06]} Nf6 {[%emt 0:00:04]} 5. Nc3 {[%emt 0:00:14]} Bb4 {[%emt 0:00:05]} 6. Nxc6 {[%emt 0:00:10]} bxc6 {[%emt 0:00:11]} 7. Bd3 {[%emt 0:00:19]} d5 {[%emt 0:00:05]} 8. exd5 {[%emt 0:00:18]} cxd5 {[%emt 0:00:07]} 9. O-O {[%emt 0:00:24]} O-O {[%emt 0:00:05]} 10. Bg5 {[%emt 0:00:41]} Be6 {[%emt 0:00:29]} 11. Qf3 {[%emt 0:00:56]} Be7 {[%emt 0:01:10]} 12. h3 {[%emt 0:02:33]} c5 {[%emt 0:04:02]} 13. Rfe1 {[%emt 0:03:14]} c4 {[%emt 0:12:50]} 14. Bf1 {[%emt 0:10:29]} Rb8 {[%emt 0:04:54]} 15. b3 {[%emt 0:06:32]} h6 {[%emt 0:05:14]} 16. Bf4 {[%emt 0:08:31]} Rc8 {[%emt 0:07:10]} 17. Be5 {[%emt 0:13:22]} Bb4 {[%emt 0:09:39]} 18. a3 {[%emt 0:06:46]} Bxc3 {[%emt 0:08:16]} 19. Bxc3 {[%emt 0:06:19]} cxb3 {[%emt 0:06:23]} 20. Bxf6 {[%emt 0:04:10]} Qxf6 {[%emt 0:01:46]} 21. Qxf6 {[%emt 0:00:06]} gxf6 {[%emt 0:00:07]} 22. cxb3 {[%emt 0:00:07]} a5 {[%emt 0:04:10]} 23. Re3 {[%emt 0:05:53]} d4 {[%emt 0:03:56]} 24. Rg3+ {[%emt 0:02:11]} Kh8 {[%emt 0:00:22]} 25. Rd1 {[%emt 0:00:15]} Rc3 {[%emt 0:03:29]} 26. Rxd4 {[%emt 0:01:37]} Rxb3 {[%emt 0:00:08]} 27. Rxb3 {[%emt 0:00:40]} Bxb3 {[%emt 0:00:07]} 28. Rd6 {[%emt 0:00:05]} Kg7 {[%emt 0:07:51]} 29. Ra6 {[%emt 0:00:38]} Rc8 {[%emt 0:03:01]} 30. Bb5 {[%emt 0:03:47]} Rc1+ {[%emt 0:02:20]} 31. Kh2 {[%emt 0:00:06]} Rc2 {[%emt 0:00:41]} 32. f3 {[%emt 0:00:43]} Bd5 {[%emt 0:05:10]} 33. Kg3 {[%emt 0:00:29]} Rc5 {[%emt 0:00:44]} 34. a4 {[%emt 0:01:26]} Bb3 {[%emt 0:00:49]} 35. h4 {[%emt 0:06:51]} Kg6 {[%emt 0:03:48]} 36. Rxa5 {[%emt 0:00:53]} Bxa4 {[%emt 0:00:29]} 37. Bd3+ {[%emt 0:00:08]} 1-0